[Event "GER-ch Youth U10 2020"]
[Site "Willingen"]
[Date "2020.10.31"]
[Round "7.27"]
[White "Ehrath, Hendrik"]
[Black "Kutz, Paul Matti"]
[Result "0-1"]
[ECO "C02"]
[WhiteElo "1193"]
[BlackElo "1242"]
[Annotator "NA RC"]
[PlyCount "72"]
[EventDate "2020.10.27"]
[EventType "swiss"]
[EventRounds "7"]
[EventCountry "GER"]
[SourceTitle "playchess.com"]
[Source "ChessBase"]
[SourceQuality "1"]
[TimeControl "40/4500+30:900+30"]

1. e4 {[%emt 0:00:00]} e6 {[%emt 0:00:13]} 2. d4 {[%emt 0:01:27]} d5 {[%emt 0:01:16]} 3. e5 {[%emt 0:01:49]} c5 {[%emt 0:02:30]} 4. c3 {[%emt 0:00:48]} Nc6 {[%emt 0:03:01]} 5. Nf3 {[%emt 0:01:37]} Nge7 {[%emt 0:02:50]} 6. dxc5 {[%emt 0:01:20]} Ng6 {[%emt 0:03:01]} 7. Bg5 {[%emt 0:02:39]} Be7 {[%emt 0:02:54]} 8. Bxe7 {[%emt 0:00:33]} Qxe7 {[%emt 0:01:12]} 9. Nd4 {[%emt 0:03:54]} Ncxe5 {[%emt 0:03:03]} 10. b4 {[%emt 0:06:29]} Qh4 {[%emt 0:06:35]} 11. g3 {[%emt 0:01:07]} Qe4+ {[%emt 0:00:28]} 12. Qe2 {[%emt 0:00:46]} Qxh1 {[%emt 0:00:25]} 13. Nb5 {[%emt 0:01:15]} O-O {[%emt 0:02:15]} 14. f4 {[%emt 0:02:03]} Nf3+ {[%emt 0:02:02]} 15. Kd1 {[%emt 0:00:40]} Nxh2 {[%emt 0:00:41]} 16. Nd2 {[%emt 0:01:14]} e5 {[%emt 0:00:42]} 17. Nd6 {[%emt 0:00:37]} Bg4 {[%emt 0:00:15]} 18. Qxg4 {[%emt 0:00:53]} Nxg4 {[%emt 0:00:13]} 19. Kc2 {[%emt 0:00:24]} Ne3+ {[%emt 0:00:42]} 20. Kb2 {[%emt 0:00:20]} Qh2 {[%emt 0:00:59]} 21. Kc1 {[%emt 0:00:21]} d4 {[%emt 0:00:42]} 22. cxd4 {[%emt 0:00:18]} exd4 {[%emt 0:00:11]} 23. N6c4 {[%emt 0:00:11]} Nxc4 {[%emt 0:00:40]} 24. Bxc4 {[%emt 0:00:31]} Rfe8 {[%emt 0:00:57]} 25. Kc2 {[%emt 0:00:16]} Qxg3 {[%emt 0:06:58]} 26. Rf1 {[%emt 0:00:16]} Re7 {[%emt 0:01:01]} 27. Kd1 {[%emt 0:00:59]} Rae8 {[%emt 0:02:03]} 28. Nf3 {[%emt 0:00:18]} Nxf4 {[%emt 0:03:00]} 29. a4 {[%emt 0:00:26]} d3 {[%emt 0:06:13]} 30. b5 {[%emt 0:00:50]} Qg2 {[%emt 0:01:21]} 31. Nd2 {[%emt 0:00:43]} Re2 {[%emt 0:04:28]} 32. Bxf7+ {[%emt 0:00:30]} Kxf7 {[%emt 0:00:18]} 33. Rxf4+ {[%emt 0:00:16]} Kg8 {[%emt 0:01:38]} 34. Rf8+ {[%emt 0:00:42]} Rxf8 {[%emt 0:01:38]} 35. Kc1 {[%emt 0:00:40]} Rxd2 36. a5 {[%emt 0:00:19]} Rf1# 0-1

[Event "GER-ch Youth U10 2020"]
[Site "Willingen"]
[Date "2020.10.31"]
[Round "7.28"]
[White "Gulamzada, Elmir"]
[Black "Peters, Lasse"]
[Result "1-0"]
[ECO "C78"]
[WhiteElo "1397"]
[BlackElo "1223"]
[Annotator "NA RC"]
[PlyCount "120"]
[EventDate "2020.10.27"]
[EventType "swiss"]
[EventRounds "7"]
[EventCountry "GER"]
[SourceTitle "playchess.com"]
[Source "ChessBase"]
[SourceQuality "1"]
[TimeControl "40/4500+30:900+30"]

1. e4 {[%emt 0:00:00]} e5 {[%emt 0:00:00]} 2. Nf3 {[%emt 0:00:10]} Nc6 {[%emt 0:00:00]} 3. Bb5 {[%emt 0:00:16]} a6 {[%emt 0:00:12]} 4. Ba4 {[%emt 0:00:21]} Bc5 {[%emt 0:01:13]} 5. O-O {[%emt 0:00:32]} Nf6 {[%emt 0:01:18]} 6. d3 {[%emt 0:02:33]} b5 {[%emt 0:01:57]} 7. Bb3 {[%emt 0:00:19]} d6 {[%emt 0:02:44]} 8. Nc3 {[%emt 0:01:19]} O-O {[%emt 0:01:58]} 9. Bg5 {[%emt 0:01:03]} Bg4 {[%emt 0:14:54]} 10. Nd5 {[%emt 0:05:16]} Nd4 {[%emt 0:02:18]} 11. Bxf6 {[%emt 0:02:34]} gxf6 {[%emt 0:01:10]} 12. c3 {[%emt 0:04:37]} Nxf3+ {[%emt 0:00:57]} 13. gxf3 {[%emt 0:01:29]} Bh3 {[%emt 0:00:42]} 14. Re1 {[%emt 0:03:29]} c6 {[%emt 0:00:45]} 15. Ne3 {[%emt 0:00:32]} Qb6 {[%emt 0:02:28]} 16. Kh1 {[%emt 0:02:54]} Kh8 {[%emt 0:04:34]} 17. Re2 {[%emt 0:04:11]} Qa7 {[%emt 0:01:33]} 18. Rc1 {[%emt 0:05:02]} Rac8 {[%emt 0:00:57]} 19. Qd2 {[%emt 0:05:10]} Rg8 {[%emt 0:02:31]} 20. Rg1 {[%emt 0:03:43]} Rxg1+ {[%emt 0:00:10]} 21. Kxg1 {[%emt 0:00:11]} Rg8+ {[%emt 0:00:15]} 22. Kh1 {[%emt 0:03:00]} Bxe3 {[%emt 0:02:49]} 23. fxe3 {[%emt 0:02:25]} Bf1 {[%emt 0:02:45]} 24. Rf2 {[%emt 0:02:30]} Bh3 {[%emt 0:01:07]} 25. d4 {[%emt 0:02:52]} Qc7 {[%emt 0:00:54]} 26. d5 {[%emt 0:01:55]} c5 {[%emt 0:00:10]} 27. Bd1 {[%emt 0:01:22]} Qd8 {[%emt 0:00:52]} 28. Be2 {[%emt 0:01:17]} Qf8 {[%emt 0:00:33]} 29. Bf1 {[%emt 0:00:45]} Qg7 {[%emt 0:00:44]} 30. Bg2 {[%emt 0:01:55]} Bxg2+ {[%emt 0:00:43]} 31. Rxg2 {[%emt 0:00:08]} Qxg2+ {[%emt 0:00:23]} 32. Qxg2 {[%emt 0:00:09]} Rxg2 {[%emt 0:00:10]} 33. Kxg2 {[%emt 0:00:04]} Kg7 {[%emt 0:00:17]} 34. Kg3 {[%emt 0:00:33]} h5 {[%emt 0:00:29]} 35. Kh4 {[%emt 0:00:14]} Kg6 {[%emt 0:00:04]} 36. h3 {[%emt 0:02:13]} a5 {[%emt 0:00:27]} 37. b3 {[%emt 0:01:24]} Kh6 {[%emt 0:01:29]} 38. f4 {[%emt 0:01:08]} Kg6 {[%emt 0:01:30]} 39. a3 {[%emt 0:01:20]} b4 {[%emt 0:00:25]} 40. axb4 {[%emt 0:03:35]} cxb4 {[%emt 0:03:03]} 41. cxb4 {[%emt 0:15:42]} axb4 {[%emt 0:15:14]} 42. f5+ {[%emt 0:01:13]} Kh6 {[%emt 0:00:08]} 43. Kg3 {[%emt 0:00:36]} Kg7 {[%emt 0:00:48]} 44. Kf2 {[%emt 0:00:15]} Kf8 {[%emt 0:00:10]} 45. h4 {[%emt 0:00:26]} Ke8 {[%emt 0:00:53]} 46. Ke2 {[%emt 0:00:09]} Kd7 {[%emt 0:00:30]} 47. Kd3 {[%emt 0:00:08]} Kc7 {[%emt 0:00:30]} 48. Kc4 {[%emt 0:00:16]} Kb6 {[%emt 0:00:20]} 49. Kxb4 {[%emt 0:00:15]} Ka6 {[%emt 0:00:16]} 50. Ka4 {[%emt 0:00:23]} Kb6 {[%emt 0:00:24]} 51. b4 {[%emt 0:02:24]} Ka6 {[%emt 0:00:12]} 52. b5+ {[%emt 0:00:28]} Kb6 {[%emt 0:00:03]} 53. Kb4 {[%emt 0:00:28]} Kb7 {[%emt 0:00:22]} 54. Ka5 {[%emt 0:00:19]} Ka7 {[%emt 0:00:25]} 55. b6+ {[%emt 0:00:21]} Kb7 {[%emt 0:00:14]} 56. Kb5 {[%emt 0:00:10]} Kc8 {[%emt 0:00:27]} 57. Kc6 {[%emt 0:00:05]} Kb8 {[%emt 0:01:00]} 58. b7 {[%emt 0:00:08]} Ka7 {[%emt 0:00:27]} 59. Kc7 {[%emt 0:00:01]} Ka6 {[%emt 0:00:29]} 60. b8=Q {[%emt 0:02:13]} Ka5 1-0

[Event "GER-ch Youth U10 2020"]
[Site "Willingen"]
[Date "2020.10.31"]
[Round "7.29"]
[White "Allen, Phillipp"]
[Black "Yin, Vito"]
[Result "1/2-1/2"]
[ECO "B32"]
[WhiteElo "1250"]
[BlackElo "1320"]
[Annotator "NA RC"]
[PlyCount "87"]
[EventDate "2020.10.27"]
[EventType "swiss"]
[EventRounds "7"]
[EventCountry "GER"]
[SourceTitle "playchess.com"]
[Source "ChessBase"]
[SourceQuality "1"]
[TimeControl "40/4500+30:900+30"]

1. e4 {[%emt 0:00:00]} c5 {[%emt 0:00:00]} 2. Nf3 {[%emt 0:00:00]} Nc6 {[%emt 0:00:00]} 3. d4 {[%emt 0:00:00]} cxd4 {[%emt 0:00:00]} 4. Nxd4 {[%emt 0:00:03]} g6 {[%emt 0:00:00]} 5. Bc4 {[%emt 0:00:57]} Bg7 {[%emt 0:00:03]} 6. c3 Nf6 {[%emt 0:00:24]} 7. Nd2 {[%emt 0:01:04]} O-O {[%emt 0:00:26]} 8. O-O d5 9. exd5 {[%emt 0:02:19]} Nxd5 {[%emt 0:00:38]} 10. N2f3 {[%emt 0:00:22]} Nb6 {[%emt 0:01:23]} 11. Nxc6 {[%emt 0:00:09]} bxc6 {[%emt 0:01:01]} 12. Qxd8 {[%emt 0:00:24]} Rxd8 {[%emt 0:00:06]} 13. Bb3 {[%emt 0:00:14]} Bg4 {[%emt 0:01:48]} 14. Be3 {[%emt 0:00:40]} Bxf3 {[%emt 0:00:27]} 15. gxf3 {[%emt 0:00:10]} Rd7 {[%emt 0:01:12]} 16. Rfd1 {[%emt 0:00:36]} Rad8 {[%emt 0:01:55]} 17. Rxd7 {[%emt 0:00:44]} Rxd7 {[%emt 0:00:18]} 18. Bxb6 {[%emt 0:00:17]} axb6 {[%emt 0:00:07]} 19. Rd1 {[%emt 0:00:07]} Rd6 {[%emt 0:01:16]} 20. Rxd6 {[%emt 0:00:18]} exd6 {[%emt 0:00:07]} 21. Kf1 {[%emt 0:00:06]} Kf8 {[%emt 0:00:31]} 22. Ke2 {[%emt 0:00:05]} Ke7 {[%emt 0:00:56]} 23. Kd3 {[%emt 0:00:19]} d5 {[%emt 0:01:04]} 24. a4 {[%emt 0:00:29]} Kd6 {[%emt 0:01:11]} 25. Ba2 {[%emt 0:00:22]} Be5 {[%emt 0:00:54]} 26. h3 {[%emt 0:00:09]} f5 27. b4 {[%emt 0:00:15]} c5 {[%emt 0:02:43]} 28. bxc5+ {[%emt 0:00:48]} Kxc5 {[%emt 0:00:39]} 29. Bb3 {[%emt 0:01:07]} d4 {[%emt 0:01:45]} 30. cxd4+ {[%emt 0:01:53]} Bxd4 {[%emt 0:00:13]} 31. Bg8 {[%emt 0:00:36]} g5 {[%emt 0:04:46]} 32. Bxh7 {[%emt 0:00:15]} f4 {[%emt 0:00:05]} 33. Bf5 {[%emt 0:00:55]} Bxf2 {[%emt 0:00:11]} 34. Ke4 {[%emt 0:00:23]} Bh4 {[%emt 0:00:20]} 35. Bd7 {[%emt 0:00:30]} Kc4 {[%emt 0:00:36]} 36. Ke5 {[%emt 0:00:53]} Kd3 {[%emt 0:00:23]} 37. Kd5 {[%emt 0:00:39]} Ke2 {[%emt 0:00:34]} 38. Bg4 {[%emt 0:00:11]} Kd3 {[%emt 0:01:46]} 39. Kc6 {[%emt 0:00:21]} Bf2 {[%emt 0:00:05]} 40. Kb5 {[%emt 0:00:49]} Be3 {[%emt 0:02:05]} 41. a5 {[%emt 0:15:16]} bxa5 {[%emt 0:15:16]} 42. Kxa5 {[%emt 0:00:11]} Kc4 {[%emt 0:01:52]} 43. Ka6 {[%emt 0:00:21]} Kd5 {[%emt 0:00:16]} 44. Kb5 1/2-1/2